Cogmind - Beta 16 @@@ ROGUE MODE // 2025.10.29 @ 21:35:21 Player: satan5 Result: Destroyed by 0O-1O7(R) with Subdweller Laser Performance ------------- Evolutions (0) 0 Regions Visited (2) 400 Robots Destroyed (22) 110 Value Destroyed (646) 646 Prototype IDs (0) 0 Alien Tech Used (0) 0 Bonus (0) 0 TOTAL SCORE: 1156 Bonus ------- None Cogmind --------- Core Integrity 0/250 Matter 285/300 Energy 250/250 System Corruption 0% Temperature Cool (6) Movement Treading (160) Location -10/Subcaves Parts ------- > --- POWER (1) -------- Ion Engine > --- PROPULSION (2) --- Spiked Treads Spiked Treads > --- UTILITY (2) ------ Large Storage Unit > --- WEAPON (2) ------- Subdweller Machine Gun Subdweller Machine Gun > --- INVENTORY (15) --- Aluminum Leg Wheel Disposable Heat Sink Improved Terrain Scanner Makeshift Light Armor Plating Riot Gun Medium Laser Subdweller Laser Battle Rifle Battle Rifle Battle Rifle Heavy Battle Rifle Makeshift Hammer Makeshift Axe Makeshift Spear Peak State ------------ > --- POWER ------------ Subdweller Power Source > --- PROPULSION ------- Spiked Treads Wheel > --- UTILITY ---------- Large Storage Unit Makeshift Light Armor Plating > --- WEAPON ----------- Subdweller Laser Subdweller Beam Cannon > --- INVENTORY -------- Ion Engine Aluminum Leg Disposable Heat Sink Improved Terrain Scanner Seismic Detector Riot Gun Medium Laser Subdweller Laser Subdweller Beam Cannon Assault Rifle Light Assault Rifle Battle Rifle Subdweller Machine Gun Heavy Battle Rifle Makeshift Axe [Rating: 17] Favorites ----------- Power Ion Engine Engine Ion Engine Propulsion Aluminum Leg Treads Spiked Treads Leg Aluminum Leg Wheel Wheel Utility Large Storage Unit Device Seismic Detector Storage Large Storage Unit Processor Targeting Computer Protection Makeshift Light Armor Plating Weapon Subdweller Beam Cannon Energy Gun Subdweller Laser Energy Cannon Subdweller Beam Cannon Ballistic Gun Subdweller Machine Gun Build | -11 -10 -10 ------- Run | Yrd Mat Sub Slots Evolved . | . . . Power . | . . . Propulsion . | . . . Utility . | . . . Weapon . | . . . Parts Attached 21 | 6 2 13 Power 3 | 1 . 2 Engine 3 | 1 . 2 Core . | . . . Reactor . | . . . Propulsion 6 | 2 . 4 Treads 2 | . . 2 Leg 3 | 2 . 1 Wheel 1 | . . 1 Hover . | . . . Flight . | . . . Utility 5 | 1 2 2 Device 1 | . . 1 Storage 2 | 1 1 . Processor 1 | . 1 . Hackware . | . . . Protection 1 | . . 1 Artifact . | . . . Weapon 7 | 2 . 5 Energy Gun 1 | . . 1 Energy Cannon 2 | . . 2 Ballistic Gun 4 | 2 . 2 Ballistic Cannon . | . . . Launcher . | . . . Special Weapon . | . . . Impact Weapon . | . . . Slashing Weapon . | . . . Piercing Weapon . | . . . Special Melee Weapon . | . . . Unidentified Prototypes . | . . . Parts Lost 4 | . . 4 Power 1 | . . 1 Propulsion 2 | . . 2 Utility 1 | . . 1 Weapon . | . . . Highest Loss Streak 1 | . . 1 To Critical Strikes . | . . . Average Backups 11 | 1 4 12 Power . | . 1 . Propulsion 1 | . . 1 Utility 2 | . 2 2 Weapon 6 | . 1 7 Tool/Special . | . . . Unused Backups 13 | . . 13 Power 1 | . . 1 Propulsion . | . . . Utility 2 | . . 2 Weapon 10 | . . 10 Tool/Special . | . . . Average Slot Usage (%) 98 | . 93 99 Engine 13 | . 14 13 Treads 8 | . . 9 Leg 13 | . 28 11 Wheel 5 | . . 6 Device 2 | . . 3 Storage 14 | . 14 14 Processor 1 | . 7 . Protection 8 | . . 10 Energy Gun 5 | . . 6 Energy Cannon 8 | . . 9 Ballistic Gun 14 | . 28 12 Peak Build Rating 17 | 6 7 17 Average Rating 12 | 5 6 14 On Entrance 4 | . 6 7 Avg Prop Armor Cover (%) 13 | . . 13 Naked Turns . | . . . Heaviest Build 41 | 13 33 41 Greatest Support 40 | 20 20 40 Greatest Overweight (x) 4 | 1 1 4 Average Overweight (x) 2 | . . 2 Largest Inventory Capacity 15 | 8 15 15 Average Capacity 14 | 7 12 15 Most Carried 15 | 4 5 15 Average Carried 11 | 2 4 13 Final Capacity 15 | 8 15 15 Final Carried 15 | 4 5 15 Class Distribution -------------------- 100% | Mutant Dominant Class ---------------- Mutant | -10/Materials Mutant | -10/Subcaves Resources | -11 -10 -10 ----------- Run | Yrd Mat Sub Matter Collected 647 | 282 46 319 Remotely . | . . . Salvage Created 821 | 14 167 640 Parts 54 | 4 10 40 Haulers Intercepted 2 | . 2 . Recyclers Shooed . | . . . Parts Field Recycled . | . . . Retrieved Matter . | . . . Parts Self-Destructed 10 | . . 10 Prevented . | . . . Parts Restored . | . . . Kills | -11 -10 -10 ------- Run | Yrd Mat Sub Combat Hostiles Destroyed 18 | . 3 15 Guns 12 | . 3 9 Cannons 6 | . . 6 Classes Destroyed 5 | 1 3 1 Builder 1 | . 1 . Tunneler 1 | 1 . . Hauler 2 | . 2 . Swarmer 3 | . 3 . Subdweller 15 | . . 15 Best Kill Streak 4 | 1 4 2 Combat Bots Only 3 | . 3 2 Max Kills in Single Turn 1 | 1 1 1 Gunslinging . | . . . Exploded . | . . . Melee . | . . . Uniques/NPCs Destroyed . | . . . Combat | -11 -10 -10 -------- Run | Yrd Mat Sub Hostile Shots Fired 90 | . 18 72 Missed 19 | . 1 18 Hits 71 | . 17 54 Projectile 71 | . 17 54 Critical Strikes 3 | . . 3 Damage Taken 1231 | . 126 1105 Core 270 | . 22 248 Absorbed by Shields . | . . . Core Remaining (%) 100 | 100 . . Volleys Fired 100 | 6 18 76 Largest 2 | 2 2 2 Hottest 140 | 40 40 140 Shots Fired 192 | 12 36 144 Gun 153 | 12 36 105 Cannon 39 | . . 39 Launcher . | . . . Special . | . . . Kinetic 121 | 12 36 73 Thermal 71 | . . 71 Explosive . | . . . Electromagnetic . | . . . Robot Hit Streak 23 | 5 12 23 Robot Miss Streak 2 | 1 2 2 Penetration Max . | . . . Secondary Targets 2 | . 1 1 Max Gunslinging Chain 1 | . 1 1 Shots Hit Robots 127 | 7 28 92 Core Hits 45 | 2 12 31 Critical Kills . | . . . Critical Parts Destroyed 1 | . . 1 Critical Strikes 1 | . . 1 Destroy 1 | . . 1 Melee Attacks . | . . . Impact . | . . . Slashing . | . . . Piercing . | . . . Sneak Attacks . | . . . Combat Hostiles . | . . . Follow-up Attacks . | . . . Damage Inflicted 2013 | 82 297 1634 Guns 1434 | 82 297 1055 Cannons 579 | . . 579 Explosions . | . . . Melee . | . . . Ramming . | . . . Kinetic 1051 | 82 297 672 Thermal 962 | . . 962 Explosive . | . . . Electromagnetic . | . . . Impact . | . . . Slashing . | . . . Piercing . | . . . Highest Corruption . | . . . Average Corruption . | . . . Corruption Purged . | . . . Corruption Blocked . | . . . Overload Shots . | . . . Overflow Damage . | . . . Projectiles . | . . . Explosions . | . . . Melee . | . . . Knockbacks . | . . . Impact . | . . . Kinetic . | . . . Secondary . | . . . Self-Inflicted Damage . | . . . Shots . | . . . Rammed . | . . . Targets Rammed . | . . . Kicked . | . . . Crushed . | . . . Highest Temperature 264 | . . 264 Average Temperature 62 | . . 62 Received Heat Transfer 528 | . . 528 Siege Activations . | . . . Martial Activations . | . . . Shielding Activations . | . . . Robots Disrupted . | . . . Combat Hostiles . | . . . Robots Corrupted . | . . . Combat Hostiles . | . . . Parts Fried . | . . . Impact Corruptions . | . . . Robots Melted . | . . . Combat Hostiles . | . . . Parts Melted 1 | . . 1 Heat Transferred 1252 | . . 1252 Parts Sabotaged . | . . . Parts Stolen . | . . . Parts Stripped . | . . . Power Chain Reactions . | . . . Alert | -11 -10 -10 ------- Run | Yrd Mat Sub Maximum Alert Level . | . . . Low Security (%) 100 | 100 100 . Level 1 . | . . . Level 2 . | . . . Level 3 . | . . . Level 4 . | . . . Level 5 . | . . . High Security . | . . . Max Security . | . . . Peak Influence 70 | 5 70 . Initial . | . . . Average 11 | . 13 . Influence Increases 103 | 5 98 . Destroy 0b10 Robot/C 60 | . 60 . Destroy 0b10 Robot/NC 20 | 5 15 . Destroy Leader 14 | . 14 . Successful Hack 9 | . 9 . Influence Decreases 103 | 5 98 . Time Decay 103 | 5 98 . Squads Dispatched . | . . . Investigation . | . . . Extermination . | . . . Reinforcement . | . . . Assault . | . . . Garrison . | . . . Intercept . | . . . Searches Triggered . | . . . Construction Impeded . | . . . Haulers Reinforced . | . . . Active Scanning Responses . | . . . Cargo Convoy Interrupts . | . . . Stealth | -11 -10 -10 --------- Run | Yrd Mat Sub Distress Signals . | . . . Communications Jammed . | . . . Distress Signals . | . . . Times Spotted 20 | . 4 16 Peak Tracking Total 3 | . 3 2 Tactical Retreats . | . . . Traps | -11 -10 -10 ------- Run | Yrd Mat Sub Traps Triggered . | . . . Indirectly . | . . . Trap Hack Attempts . | . . . Triggered . | . . . Disarmed . | . . . Reprogrammed . | . . . Reused . | . . . Traps Extracted . | . . . Installed . | . . . Triggered . | . . . Machines | -11 -10 -10 ---------- Run | Yrd Mat Sub Machines Disabled . | . . . Max in Single Turn . | . . . Machines Repaired . | . . . Machines Dismantled . | . . . Machines Sabotaged . | . . . Overloaded Fab Kills . | . . . Hacking | -11 -10 -10 --------- Run | Yrd Mat Sub Machines Accessed 4 | . 4 . Terminals 3 | . 3 . Fabricators . | . . . Repair Stations . | . . . Recycling Units 1 | . 1 . Scanalyzers . | . . . Garrison Access . | . . . Total Hacks 11 | . 11 . Successful 4 | . 4 . Failed 7 | . 7 . Catastrophic 1 | . 1 . Database Lockouts . | . . . Manual 10 | . 10 . Terminals 9 | . 9 . Fabricators . | . . . Repair Stations . | . . . Recycling Units 2 | . 2 . Scanalyzers . | . . . Garrison Access . | . . . Terminal Hacks . | . . . Fabricator Hacks . | . . . Repair Station Hacks . | . . . Recycling Unit Hacks 1 | . 1 . Retrieve Components 1 | . 1 . Scanalyzer . | . . . Garrison Access Hacks . | . . . Unauthorized Hacks 3 | . 3 . Terminals 3 | . 3 . Botnet 3 | . 3 . Fabricators . | . . . Repair Stations . | . . . Recycling Units . | . . . Scanalyzers . | . . . Garrison Access . | . . . Data Cores Recovered . | . . . Used . | . . . Hacking Detections 4 | . 4 . Full Trace Events . | . . . Feedback Events . | . . . Feedback Blocked . | . . . Robot Schematics Acquired . | . . . Robots Built . | . . . Authchips . | . . . Time . | . . . Total Robot Build Rating . | . . . Part Schematics Acquired . | . . . Parts Built . | . . . Authchips . | . . . Time . | . . . Total Part Build Rating . | . . . Part Studies Acquired . | . . . Parts Repaired . | . . . Time . | . . . Parts Recycled . | . . . Recycled Matter . | . . . Retrieved Matter . | . . . Retrieved Components 3 | . 3 . Parts Scanalyzed . | . . . Part Schematics Acquired . | . . . Parts Damaged . | . . . Bothacking | -11 -10 -10 ------------ Run | Yrd Mat Sub Used RIF Installer . | . . . Robots Hacked . | . . . Non-combat . | . . . Combat . | . . . Robot Hacks Applied . | . . . Relay Couplers Released . | . . . Fabnet Peak Effective % . | . . . Robots Rewired . | . . . Allies Hacked . | . . . Hacks Repelled . | . . . Allies | -11 -10 -10 -------- Run | Yrd Mat Sub Total Allies . | . . . Largest Group . | . . . Highest-Rated Group . | . . . Highest-Rated Ally . | . . . Total Orders . | . . . Ally Attacks . | . . . Total Damage . | . . . Kills . | . . . Allies Corrupted . | . . . Allies Melted . | . . . Intel | -11 -10 -10 ------- Run | Yrd Mat Sub Active Infowar (turns) 652 | . . 652 Seismic 652 | . . 652 Robot Analysis Total . | . . . Derelict Logs Recovered 3 | . . 3 Drone Launches . | . . . Drone Recoveries . | . . . Exploration | -11 -10 -10 ------------- Run | Yrd Mat Sub Turns Passed 3258 | 79 455 2724 Spaces Moved 1626 | 45 195 1386 Core 6 | 6 . . Treads 144 | . . 144 Legs 633 | 39 195 399 Wheels 843 | . . 843 Hover . | . . . Flight . | . . . Fastest Speed 50 | 50 120 125 Average Speed 163 | 111 143 167 Slowest Speed 260 | 120 190 260 Overloaded Moves . | . . . Propulsion Burnouts . | . . . Robots Hopped . | . . . Potential Cave-ins . | . . . Cave-ins Triggered . | . . . Exploration Rate (%) 30 | 4 36 50 Regions Visited 2 Branch Regions 1 Pre-discovered Areas . | . . . Known Exits Taken . | . . . Unknown Exits Taken 2 | 1 1 . Scrap Searched 9 | . . 9 Spaces Dug . | . . . Terrain Destroyed 2 | . . 2 Melee . | . . . Projectile 2 | . . 2 AOE . | . . . Terrain Rammed . | . . . Walls Destroyed . | . . . Machines Disabled . | . . . Actions | -11 -10 -10 --------- Run | Yrd Mat Sub Total 2038 | 60 338 1640 Wait 257 | . 123 134 Move 1624 | 44 194 1386 Hop . | . . . Pick Up 25 | 4 1 20 Fast Attach 7 | 6 1 . Attach 6 | . . 6 Detach 2 | . . 2 Swap 10 | . 1 9 Drop 7 | . . 7 Fire 100 | 6 18 76 Melee . | . . . Ram . | . . . Kick . | . . . Crush . | . . . Escape Stasis . | . . . Rewire . | . . . Trap . | . . . Miscellaneous . | . . . Route ------- -11/Scrapyard -10/Materials (discovered 2 exits: [*Mat] / [*Sub]) -10/Subcaves (discovered 1 exit: [*Mat]) History --------- Turn | Location | Event 16 | -11/Scrapyard | Discovered new exit (range 16) 80 | -11/Scrapyard | Entered Materials 323 | -10/Materials | Build established: Mutant 328 | -10/Materials | Discovered new exit (range 12) 528 | -10/Materials | Discovered new exit (range 6) 535 | -10/Materials | Entered Subcaves 536 | -10/Subcaves | Approached by a straggling Scientist 571 | -10/Subcaves | Shifting Twisted Machinery released Mak. Light Armor Plating 813 | -10/Subcaves | Disturbed a concealed Subdweller 1117 | -10/Subcaves | A swath of the cavern ceiling suddenly collapsed 1215 | -10/Subcaves | Shifting Twisted Machinery released Mak. Axe 1250 | -10/Subcaves | Shifting Twisted Machinery released Battle Rifle 1255 | -10/Subcaves | Learned Materials terminal intel 1570 | -10/Subcaves | Core integrity fell below 50% 1640 | -10/Subcaves | Core integrity fell below 20% 1676 | -10/Subcaves | Shifting Twisted Machinery released Battle Cannon 1732 | -10/Subcaves | Learned Materials security intel 1896 | -10/Subcaves | Learned 4 Materials zone layouts 2609 | -10/Subcaves | Discovered new exit (range 12) 3259 | -10/Subcaves | Destroyed by 0O-1O7(R) with Subdweller Laser Last Messages --------------- 02945_ Found Sub. Monowheel. 02945_ Found 34 Matter. 02946_ Searching scrap... 02946_ Found Mak. Spear. 02946_ Found Spk. Treads. 02946_ Found 33 Matter. 02948_ Acquired Mak. Spear. 02951_ Acquired Spk. Treads. 02956_ Searching scrap... 02956_ Found Mak. Hammer. 02956_ Found Shrapnel Trap. 02956_ Found 41 Matter. 02957_ Acquired 10 matter. 02960_ Acquired Mak. Hammer. 03020_ JS-O50(R) destroyed. 03023_ Acquired 12 matter. 03048_ OE-R4C(R): "MADSUB!" 03251_ Seismic Detector destroyed. 03252_ D8-CGH(R) destroyed. 03252_ Switching to secondary target: 0O-1O7(R). Map ----- +----------------------------------------------------+ | ?# ???????????????# #????????????????????????? | | ## ????#####???#### ##????????????????????????? | | # ????# ##### ##???????????????????????? | | # ##???# #???????????????????????? | | # ##?## ##???????????????????????? | | # ### # ## ###??????????????????????? | | ## # ##### #??????????????????????? | | #???## #??## ##?????????????????????? | | ?????# ####### #####?????????????????? | | ?????####?# #??#####??????????? | | ?????????## ### #?## ####???????? | | ?????????# #### #### #???????? | | ?????????## #### ##?# #???????? | | ??????????##### #?## #### #???????? | | ??????????????## #?## ## ## #????????? | | ???????????????# ##??###### ######????????? | | ????????????#######????????# #?????????????? | | ????????????# ##?????????## #?????????????? | | ????????????# #????????## ##?????????????? | | ????????????# #????????# ##??????????????? | | ???????????## #????????# ##???###????????? | | ???????????# #?###?#### #??## ##???????? | | ???????????# ### ### ## #?## ####????? | | ???????????## ##?# ###### | | ????????????## R #??# ## | | ?????????????# ##@ &%! ##??# "" | | ?????????????# ## ########* ##???# ## | | ?????????????# ## #?????# ##???# ##? | | ?????????????## ## ##???### #???# ####?? | | ??????????????##### #???# #???# ##????? | | ????????????????## #???# ##### ##??### | | ???????????????## ##??# #### | | ???????????????# ##?### ##*= | | ???????????????# ##### !& ## | | ???????????????## ### ## ###### | | ????????????????# #?## ###### #? | | ????????????????# #??# ###### ? | | ????????????????## #??# ## ? | | ?????????????????###??# #### ## ? | | ??????????????????????#####??# ## ? | | ????????????????????????????## " ### # # | | ???????????????????????????## """ ###? | | ???????????????????????????# " ###?????##" ## | | ???????????????????????????# ##???????##"#?#" | | ???????????????????????????## #????????# #"### | | ???????????????????????????## ####?????????# #"#" | | ?????????????????????????### ##??????####### #""# | | ????????????????????????##" ######### ##"###"#" | | ????????????????????????#" # ## # """"#"## | | ????????????????????????#""# ##"#" # | +----------------------------------------------------+ Best States ------------- Heat Dissipation 25 Energy Generation 15 Energy Capacity 250 Matter Stores 300 Matter Capacity 300 Sight Range 16 Terrain Scan Density 10 Armor Coverage 100 Evasion (%) 55 Targeting Accuracy 5 Recoil Reduction 2 Item Schematics ----------------- None Robot Schematics ------------------ None Fabricated ------------ Nothing Repaired ---------- Nothing Studied --------- None Alien Tech Used ----------------- None Achievements -------------- None Challenges ------------ None Game ------ Seed MakeshiftThunderDriveblaster Manual? 0 Play Time 00:16:32 Cumulative 351.2 hours Start 2025.10.29 @ 21:21:11 End 2025.10.29 @ 21:35:21 Sessions 1 Manual Loads 0 Difficulty Rogue Special Mode None Game No. 174 Rogue 160 Adventurer 14 Explorer 0 Win Type - Total 18 Types 15/0/1/1/0/0/0/0/1/0 Lore% 65 Gallery% 72 Achievement% 44 Wizard Run 0 Options --------- Layout 1 ASCII 0 Keyboard 0 Movement Arrows Keybinds 0 Fullscreen 1 Font 32/SmallcapsGlow Map View 50x40 Zoom Use 0% Tactical HUD 1 Map Filters NONE Filters NONE Steam 1 RUN: 527ca5af-dc00-4ad7-9b90-573b5d010b8c